{"text_format":"1","workbook":"xlsx","n_sheets":7,"sheets":["MATRIZ DE INDICADORES","MCT-2","MCT-3","MCT-7","MCT-8","ACTUALIZACIONES","ITEM"],"not_rendered":{"charts":4,"images":5,"macros":1,"external_links":6,"defined_names":13,"comments":4,"pivot_tables":0},"unopened":[],"bounds":{"document_bytes":16777216,"sheet_cells":100000,"rows_first":2000,"rows_last":500,"rows_between":2000,"halvings":0,"cell_chars":16384,"cell_head_chars":4096},"cells_cut":0,"cells_raw":0,"read":"whole","date_system":"1900"}

{"sheet":"MATRIZ DE INDICADORES","index":0,"n_rows":37,"n_cols":21,"rows_kept":37,"cut":false,"hidden":false,"merged":[[1,1,4,2],[1,3,1,17],[1,18,1,20],[2,3,2,17],[2,18,2,20],[3,3,4,17],[3,18,3,20],[4,18,4,20],[6,16,7,17],[9,1,10,20],[12,1,33,1],[12,2,33,2],[12,3,33,3],[12,4,33,4],[12,5,33,5],[12,6,16,6],[12,7,16,7],[12,8,16,8],[12,20,16,20],[17,6,21,6],[17,7,21,7],[17,8,21,8],[17,9,21,9],[17,10,21,10],[17,11,21,11],[17,18,21,18],[17,19,21,19],[17,20,21,20],[12,9,16,9],[12,10,16,10],[12,11,16,11],[12,18,16,18],[12,19,16,19],[22,7,26,7],[22,8,26,8],[22,9,26,9],[22,10,26,10],[22,11,26,11],[35,1,35,20],[36,1,36,20],[12,17,33,17],[22,18,26,18],[22,19,26,19],[22,20,26,20],[27,18,33,18],[27,19,33,19],[27,20,33,20],[27,6,33,6],[27,7,33,7],[27,8,33,8],[27,9,33,9],[27,10,33,10],[27,11,33,11],[22,6,26,6]]}
[]
[null,null,null,"MACROPROCESO ESTRATÉGICO",null,null,null,null,null,null,null,null,null,null,null,null,null,null,"CÓDIGO: ESGr027"]
[null,null,null,"PROCESO GESTIÓN SISTEMAS INTEGRADOS - CALIDAD",null,null,null,null,null,null,null,null,null,null,null,null,null,null,"VERSIÓN: 8"]
[null,null,null,"MATRIZ DE MEDICIÓN Y SEGUIMIENTO A LOS PROCESOS DE GESTIÓN",null,null,null,null,null,null,null,null,null,null,null,null,null,null,"VIGENCIA: 2023-07-28"]
[null,null,null,null,null,null,null,null,null,null,null,null,null,null,null,null,null,null,"PÁGINA: 1 de 5"]
[]
[null,null,null,null,null,null,null,null,null,null,null,null,null,null,null,null,"FECHA DE ACTUALIZACIÓN:",null,"AÑO","MES","DÍA"]
[null,null,null,null,null,null,null,null,null,null,null,null,null,null,null,null,null,null,2024,2,20]
[]
[null,"ALINEACIÓN DE LOS INDICADORES CON LOS DOCUMENTOS ESTRATÉGICOS Y LOS OBJETIVOS DE CALIDAD"]
[]
[null,"PROCESO GESTIÓN","FRENTES DEL PLAN ESTRATÉGICO","LINEAMIENTOS DE LA POLÍTICA DE CALIDAD","OBJETIVOS DE CALIDAD","OBJETIVO GENERAL DEL PROCESO","OBJETIVOS ESPECÍFICOS","NOMBRE INDICADOR","FÓRMULA","TIPO DE INDICADOR","SEGUIMIENTO MEDICIÓN","META","ACTIVIDAD","RESPONSABLE DE LA ACTIVIDAD","¿QUÉ RECURSOS SE REQUIEREN?","FECHA EJECUCIÓN DE ACTIVIDADES","EVIDENCIA","¿CUÁNDO FINALIZARÁ?","RESULTADO ","NIVEL OBTENIDO","ACCESO"]
[null,"Ciencia, Tecnología e Innovación","Frente Estratégico II: Misión trascendente","Consolida una misión trascendente y de impacto desde sus funciones sustantivas","1. Promover una misión trascendente y de impacto a través del fortalecimiento de los resultados planteados por la Universidad de Cundinamarca en sus funciones sustantivas.","Generar y transferir conocimiento científico relevante que aporte al desarrollo de la comunidad local, regional, nacional e internacional, a través de proyectos de investigación e innovación enmarcados en el Sistema Nacional de Ciencia, Tecnología e Innovación.","Consolidar y realizar el seguimiento a 70 Investigadores de la Universidad reconocidos ante MinCiencias y/o Investigadores activos en grupos de investigación de la Universidad de Cundinamarca realizada en los dos periodos académicos durante la vigencia 2024.","Investigadores de la Universidad reconocidos ante MinCiencias y/o Investigadores activos en grupos de investigación de la Universidad de Cundinamarca","Número ponderado de investigadores de la Universidad sujeto a convocatoria de MinCiencias y/o Investigadores activos en grupos de investigación","Eficacia","SEMESTRAL",70,"Vincular al personal que llevara a cabo el seguimiento y acompañamiento de los Docentes Investigadores.","Dirección de Investigación / Proceso de Talento Humano","Financieros para el contrato según el paa.","Feb - 24\nJun - 24","Contratos firmados",2024,null,null,"MCT-2"]
[null,null,null,null,null,null,null,null,null,null,null,null,"Asesorar a los Docentes Investigadores en lo referente a los requisitos, productos y estrategias que necesitan para subir de categoría.","Dirección de Investigación   ","Recurso Humano\nOffice 365","Vigencia 2024","Registros de asistencia\nMatriz de seguimiento"]
[null,null,null,null,null,null,null,null,null,null,null,null,"Hacer seguimiento a la productividad, a los planes de mejoramiento y al cumplimiento de los requisitos que deben cumplir los Docentes Investigadores para subir de categoría.","Dirección de Investigación   ","Recurso Humano\nOffice 365","Vigencia 2024","CvLAC (registro ante MinCiencias)\nPlanes de mejoramiento por investigador"]
[null,null,null,null,null,null,null,null,null,null,null,null,"Medir los resultados de los Docentes Investigadores reconocidos ante MinCiencias","Dirección de Investigación      ","Recurso Humano\nOffice 365","Jun - 24\nDic - 24","Medición del indicador"]
[null,null,null,null,null,null,null,null,null,null,null,null,"Implementar acciones según los resultados","Dirección de Investigación   ","Recurso Humano\nOffice 365","Según la necesidad","Ficha técnica de indicador - Acción formulada"]
[null,null,null,null,null,null,"Realizar seguimiento a los 40 Grupos de investigación, que fueron  avalados institucionalmente y registrados ante MinCiencias de acuerdo los resultados de la última convocatoria realizada en los dos periodos académicos dentro de la vigencia 2024.","Grupos de investigación avalados institucionalmente y registrados ante MinCiencias","Número de Grupos de investigación avalados institucionalmente sujeto a convocatoria de MinCiencias","Eficacia","SEMESTRAL",40,"Vincular al personal que llevara a cabo el seguimiento y acompañamiento de los grupos de investigación","Dirección de Investigación / Proceso de Talento Humano","Financieros para el contrato según el paa.","Feb - 24\nJun - 24","Contratos firmados",null,null,null,"MCT-3"]
[null,null,null,null,null,null,null,null,null,null,null,null,"Asesorar a los Grupos de Investigación en lo referente a los requisitos, productos y estrategias que necesitan para subir  o mantener de categoría.","Dirección de Investigación   ","Recurso Humano\nOffice 365","Vigencia 2024","Registros de asistencia\nMatriz de seguimiento"]
[null,null,null,null,null,null,null,null,null,null,null,null,"Hacer seguimiento a la productividad, a los planes de mejoramiento y al cumplimiento de los requisitos que deben cumplir los Grupos de Investigación para subir o mantener la categoría.","Dirección de Investigación   ","Recurso Humano\nOffice 365","Vigencia 2024","GrupLAC (registro ante MinCiencias)\nPlanes de mejoramiento por Grupos de Investigación"]
[null,null,null,null,null,null,null,null,null,null,null,null,"Medir los resultados de los Grupos de Investigación avalados Institucionalmente y registrados ante MinCiencias","Dirección de Investigación   ","Recurso Humano\nOffice 365","Jun - 24\nDic - 24","Medición del indicador"]
[null,null,null,null,null,null,null,null,null,null,null,null,"Implementar acciones según los resultados","Proceso de Gestión Documental","Recurso Humano\nOffice 365","Según la necesidad","Ficha técnica de indicador - Acción formulada"]
[null,null,null,null,null,null,"Registrar y realizar seguimiento a los resultados del 95% de los Productos de CTeI generados por los grupos de Investigación de los programas académicos, durante la vigencia 2024.","Productos de CTeI generados por los grupos de Investigación","Productos de CTeI de los grupos de Investigación / Total de Productos Proyectados *100","Eficacia","SEMESTRAL",0.95,"Vincular al personal que llevara a cabo el seguimiento y acompañamiento de los grupos de investigación","Dirección de Investigación / Proceso de Talento Humano","Financieros para el contrato según el paa.","Feb - 24\nJun - 24","Contratos firmados",null,null,null,"MCT-7"]
[null,null,null,null,null,null,null,null,null,null,null,null,"Diagnosticar la producción de los grupos de la Universidad de Cundinamarca y el análisis de la incidencia de productos en la clasificación de grupos MinCiencias","Dirección de Investigación   ","Recurso Humano\nOffice 365","Vigencia 2024","Documento diagnóstico (informe)"]
[null,null,null,null,null,null,null,null,null,null,null,null,"Evaluar potencialidades de generación de productos de acuerdo a las cuatro tipologías: Generación de nuevo conocimiento, Apropiación social del conocimiento, Desarrollo tecnológico e innovación, Formación del recurso humano","Dirección de Investigación   ","Recurso Humano\nOffice 365","Vigencia 2024","Matriz de seguimiento"]
[null,null,null,null,null,null,null,null,null,null,null,null,"Medir los resultados de los Productos de CTeI generados por los grupos de Investigación","Dirección de Investigación   ","Recurso Humano\nOffice 365","Jun - 24\nDic - 24","Medición del indicador"]
[null,null,null,null,null,null,null,null,null,null,null,null,"Implementar acciones según los resultados","Dirección de Investigación   ","Recurso Humano\nOffice 365","Según la necesidad","Ficha técnica de indicador - Acción formulada"]
[null,null,null,null,null,null,"Incentivar la participación de mínimo el 85% de los semilleros de investigación, en las actividades que realice o participe CTeI, tanto internas como externas a la institución de acuerdo a los programas académicos que se encuentren vinculados a corte del 2024.","Participación de los semilleros de investigación en Actividades de CTeI","Participación de los semilleros de investigación / Semilleros Activos *100","Eficacia","SEMESTRAL",0.85,"Vincular al personal que llevara a cabo el seguimiento y acompañamiento de los Semilleros de investigación","Dirección de Investigación / Proceso de Talento Humano","Financieros para el contrato según el paa.","Feb - 24\nJun - 24","Contratos firmados",null,null,null,"MCT-8"]
[null,null,null,null,null,null,null,null,null,null,null,null,"Fomentar espacios de participación de los semilleros de Investigación en los diferentes eventos tanto internos como externos","Dirección de Investigación   ","Recurso Humano\nOffice 365\nFinancieros de acuerdo  con la solicitud de trasferencia de resultados en los casos que aplique.","Vigencia 2024","Registros y/o informes de participación"]
[null,null,null,null,null,null,null,null,null,null,null,null,"Realizar revisión de temáticas internas y externas que fortalezcan las capacidades investigativas de los estudiantes ","Dirección de Investigación   ","Recurso Humano\nOffice 365","Vigencia 2024","Diligenciamiento de un formulario (tipo encuesta) a Docentes y Estudiantes de las actividades que quisieran recibir"]
[null,null,null,null,null,null,null,null,null,null,null,null,"Realizar cronograma con las temáticas que se abordaran","Dirección de Investigación   ","Recurso Humano\nOffice 365","Vigencia 2024","Cronograma de Capacitaciones"]
[null,null,null,null,null,null,null,null,null,null,null,null,"Buscar capacitaciones externas y contenidos idóneos que aporten a fortalecer las capacidades investigativas de los estudiantes","Dirección de Investigación   ","Recurso Humano \nRecurso Financiero (cuando aplique)","Vigencia 2024","Contratos o pagos realizados de las capacitaciones ejecutadas.\n\nRegistros de participación (de las capacitaciones gratuitas)"]
[null,null,null,null,null,null,null,null,null,null,null,null,"Medir los resultados de la Participación de los semilleros de investigación en Actividades de CTeI","Dirección de Investigación   ","Recurso Humano\nOffice 365","Jun - 24\nDic - 24","Medición del indicador"]
[null,null,null,null,null,null,null,null,null,null,null,null,"Implementar acciones según los resultados","Dirección de Investigación   ","Recurso Humano\nOffice 365","Según la necesidad","Ficha técnica de indicador - Acción formulada"]
[]
[null,"Diagonal 18 No. 20-29 Fusagasugá – Cundinamarca\nTeléfono (601)  8281483 Línea Gratuita 018000180414\nwww.ucundinamarca.edu.co   E-mail:  info@ucundinamarca.edu.co\nNIT: 890.680.062-2                                                                             "]
[null,"Documento controlado por el Sistema de Gestión de la Calidad\nAsegúrese que corresponde a la última versión consultando el Portal Institucional"]

{"sheet":"MCT-2","index":1,"n_rows":101,"n_cols":25,"rows_kept":101,"cut":false,"hidden":false,"merged":[[59,10,59,14],[60,10,60,14],[12,2,12,3],[12,4,12,14],[9,2,10,14],[11,2,11,3],[11,4,11,7],[11,8,11,9],[11,10,11,14],[19,11,19,14],[13,2,13,3],[13,4,13,14],[14,2,14,14],[15,2,15,14],[16,2,16,3],[16,4,16,6],[1,1,3,2],[4,2,7,3],[4,4,4,11],[4,12,4,14],[5,4,5,11],[5,12,5,14],[6,4,7,11],[6,12,6,14],[7,12,7,14],[16,7,16,8],[17,2,18,3],[17,4,18,10],[17,11,18,12],[17,13,18,14],[16,9,16,10],[16,11,16,12],[16,13,16,14],[18,20,25,20],[16,15,17,15],[16,16,17,16],[16,24,17,24],[16,17,17,20],[18,17,25,18],[26,20,27,20],[27,9,32,14],[33,9,33,14],[22,9,23,10],[22,11,23,12],[22,13,23,14],[25,2,25,14],[26,2,42,8],[26,9,26,14],[34,9,39,14],[26,19,27,19],[18,19,25,19],[26,17,27,18],[22,2,23,3],[22,4,23,6],[19,4,21,6],[53,2,53,5],[53,6,53,9],[53,10,53,14],[26,24,27,24],[22,7,23,8],[40,9,40,14],[41,9,41,14],[18,24,25,24],[44,2,44,14],[51,2,51,14],[52,2,52,5],[52,6,52,9],[52,10,52,14],[19,2,21,3],[19,7,21,8],[19,9,21,10],[54,2,54,5],[54,6,54,9],[54,10,54,14],[55,2,55,5],[55,6,55,9],[55,10,55,14],[61,2,61,5],[61,6,61,9],[61,10,61,14],[56,2,56,5],[57,2,57,5],[59,2,59,5],[60,2,60,5],[58,2,58,5],[56,6,56,9],[57,6,57,9],[58,6,58,9],[59,6,59,9],[60,6,60,9],[56,10,56,14],[57,10,57,14],[58,10,58,14]]}
[]
[null,"      REGRESAR"]
[]
[]
[null,null,null,null,"MACROPROCESO ESTRATÉGICO",null,null,null,null,null,null,null,"CÓDIGO: ESGr027"]
[null,null,null,null,"PROCESO GESTIÓN SISTEMAS INTEGRADOS",null,null,null,null,null,null,null,"VERSIÓN: 8"]
[null,null,null,null,"MATRIZ DE MEDICIÓN Y SEGUIMIENTO A LOS PROCESOS DE GESTIÓN",null,null,null,null,null,null,null,"VIGENCIA: 2023-07-28"]
[null,null,null,null,null,null,null,null,null,null,null,null,"PÁGINA: 2 de 5"]
[]
[null,null,"FICHA DE INDICADOR"]
[]
[null,null,"MACROPROCESO",null,"Misional",null,null,null,"NOMBRE DEL INDICADOR",null,"Investigadores de la Universidad reconocidos ante MinCiencias y/o Investigadores activos en grupos de investigación de la Universidad de Cundinamarca"]
[null,null,"PROCESO GESTIÓN",null,"Ciencia, Tecnología e Innovación"]
[null,null,"RESPONSABLE DE MEDICIÓN",null,"Director(a) de Investigación Universitaria"]
[]
[null,null,"1. COMPORTAMIENTO DE INDICADOR"]
[null,null,"CLASIFICACIÓN DE LA MEDICIÓN ",null,2,null,null,"TIPO DE INDICADOR",null,"Eficiencia",null,"META",null,70]
[null,null,"FÓRMULA",null,"Número ponderado de investigadores de la Universidad sujeto a convocatoria de MinCiencias y/o Investigadores activos en grupos de investigación",null,null,null,null,null,null,"UNIDAD DE MEDIDA",null,"Número de investigadores"]
[]
[null,null,"TENDENCIA",null,"Positiva",null,null,"NIVEL DE SEGREGACIÓN *",null,"No Aplica",null,"ESCALA"]
[null,null,null,null,null,null,null,null,null,null,null,"Deficiente","Aceptable","Bueno","Excelente"]
[null,null,null,null,null,null,null,null,null,null,null,"0 - 15","16 - 22","23 - 30","> 30"]
[null,null,"ORIGEN DE DATOS",null,"Pagina MinCiencias, CvLAC - GrupLAC y Nómina de la Universidad de Cundinamarca",null,null,"FRECUENCIA DE LA MEDICIÓN",null,"SEMESTRAL",null,"FRECUENCIA DE RESULTADO",null,"ANUAL"]
[]
[]
[null,null,"RESULTADOS"]
[null,null,null,null,null,null,null,null,null,"ANÁLISIS DE DATOS\nLos datos indican un crecimiento en los acompañamientos entre el primer trimestre y \nel segundo trimestre de mas del 100%, por la contratación del personal de la oficina\nEn el tercer trimestre se muestra un decrecimiento con respecto al periodo anterior\npor las vacaciones a mitad de año, las personas se reintegraron entre julio y agosto."]
[null,null,null,null,null,null,null,null,null,"I SEMESTRE: La Universidad de Cundinamarca segun la ultima medicion realizada por el Ministerio de Ciencia, Tecnología e Innovación se obtuvo 74 investigadores categorizados. Para la vigencia 2024-1 se cuenta con 285 investigadores activos en grupos de investigacion avalados institucionalmente.\n\n\nII SEMESTRE: La Universidad de Cundinamarca segun la ultima medicion realizada por el Ministerio de Ciencia, Tecnología e Innovación se obtuvo 74 investigadores categorizados, se espera que los resultados de la medicion realizada por el Ministerio de Ciencia, Tecnología e Innovación en el año 2024 aumente el numero de investigadores categorizados.\n\nPara la vigencia 2024-2 se cuenta con 268 investigadores activos en grupos de investigacion avalados institucionalmente."]
[null,null,null,null,null,null,null,null,null,null,null,null,null,null,null,null,null,null,null,null,null,null,null,null,"Actualmente la Universidad de Cundinamarca cuenta con 74 investigadores categorizados segun la ultima medicion realizada por el Ministerio de Ciencia, Tecnología e Innovación. Para la vigencia 2024-1 se cuenta con 285 investigadores activos en grupos de investigacion avalados institucionalmente"]
[]
[]
[null,null,null,null,null,null,null,null,null,null,null,null,null,null,null,null,null,null,null,null,null,null,null,null,"CAMBIAR A "]
[null,null,null,null,null,null,null,null,null,null,null,null,null,null,null,null,null,null,null,null,null,null,null,null,"La Universidad de Cundinamarca segun la ultima medicion realizada por el Ministerio de Ciencia, Tecnología e Innovación se obtuvo 74 investigadores categorizados. Para la vigencia 2024-1 se cuenta con 285 investigadores activos en grupos de investigacion avalados institucionalmente"]
[null,null,null,null,null,null,null,null,null,"ACCIÓN FORMULADA\nReformular la meta para el próximo año dependiendo de los recursos asignados."]
[null,null,null,null,null,null,null,null,null,"I SEMESTRE: La desvinculacion laboral de los investigadores afecta el indicador dismunuyendo el numero de investigadores categorizados. \nLa estrategia implementada se enfoca en el seguimiento y acompañamiento a investigadores categorizados para fortalecer y mejorar la categoria ante el Ministerio de Ciencia, Tecnología e Innovación.\n\nII SEMESTRE: La estrategia implementada se enfoca en el seguimiento y acompañamiento a los investigadores reconocidos y categorizados para fortalecer la categoría ante el Ministerio de Ciencia, Tecnología e Innovación. Esto se logra a través del apoyo en la gestión de proyectos de investigación, la colaboración entre investigadores y las asesorias continuas, con el objetivo de aumentar la calidad y el impacto de las investigaciones."]
[]
[]
[]
[]
[]
[null,null,null,null,null,null,null,null,null,"RESPONSABLE "]
[null,null,null,null,null,null,null,null,null,{"$f":"E14","v":"Director(a) de Investigación Universitaria"}]
[]
[]
[null,null,"PERIODO DE EVALUACIÓN"]
[null,null,"MES",{"$f":"IF(J23=\"MENSUAL\",\"ENERO\",IF(J23=\"TRIMESTRAL\",\"MARZO\",IF(J23=\"SEMESTRAL\",\"JUNIO\",IF(J23=\"ANUAL\",YEAR(TODAY()),\"\"))))","v":"JUNIO"},{"$f":"IF(J23=\"MENSUAL\",\"FEBRERO\",IF(J23=\"TRIMESTRAL\",\"JUNIO\",IF(J23=\"SEMESTRAL\",\"DICIEMBRE\",\"\")))","v":"DICIEMBRE"},{"$f":"IF(J23=\"MENSUAL\",\"MARZO\",IF(J23=\"TRIMESTRAL\",\"SEPTIEMBRE\",\"\"))","v":""},{"$f":"IF(J23=\"MENSUAL\",\"ABRIL\",IF(J23=\"TRIMESTRAL\",\"DICIEMBRE\",\"\"))","v":""},{"$f":"IF(J23=\"MENSUAL\",\"MAYO\",\"\")","v":""},{"$f":"IF(J23=\"MENSUAL\",\"JUNIO\",\"\")","v":""},{"$f":"IF(J23=\"MENSUAL\",\"JULIO\",\"\")","v":""},{"$f":"IF(J23=\"MENSUAL\",\"AGOSTO\",\"\")","v":""},{"$f":"IF(J23=\"MENSUAL\",\"SEPTIEMBRE\",\"\")","v":""},{"$f":"IF(J23=\"MENSUAL\",\"OCTUBRE\",\"\")","v":""},{"$f":"IF(J23=\"MENSUAL\",\"NOVIEMBRE\",\"\")","v":""},{"$f":"IF(J23=\"MENSUAL\",\"DICIEMBRE\",\"\")","v":""}]
[null,null,{"$f":"E18","v":"Número ponderado de investigadores de la Universidad sujeto a convocatoria de MinCiencias y/o Investigadores activos en grupos de investigación"},285,268]
[null,null,{"$f":"G19","v":0}]
[null,null,"VALOR ",{"$f":"IFERROR(IF($E$17=1,D47/D48,IF($E$17=2,D47,\"\")),\"\")","v":285},{"$f":"IFERROR(IF($E$17=1,E47/E48,IF($E$17=2,E47,\"\")),\"\")","v":268},0,0,0,0,0,0,0,0,0,0]
[null,null,"META PONDERADA",{"$f":"IF(AND(N23=\"ANUAL\",J23=\"MENSUAL\"),N17/12,IF(AND(N23=\"ANUAL\",J23=\"TRIMESTRAL\"),N17/4,IF(AND(N23=\"ANUAL\",J23=\"SEMESTRAL\"),N17/2,IF(AND(N23=\"ANUAL\",J23=\"ANUAL\"),N17,IF(AND(N23=\"SEMESTRAL\",J23=\"MENSUAL\"),N17/6,IF(AND(N23=\"SEMESTRAL\",J23=\"TRIMESTRAL\"),N17/2,IF(AND(N23=\"SEMESTRAL\",J23=\"SEMESTRAL\"),N17,IF(AND(N23=\"SEMESTRAL\",J23=\"ANUAL\"),\"REVISAR FRECUENCIAS\",IF(AND(N23=\"TRIMESTRAL\",J23=\"MENSUAL\"),N17/3,IF(AND(N23=\"TRIMESTRAL\",J23=\"TRIMESTRAL\"),N17,IF(AND(N23=\"TRIMESTRAL\",J23=\"SEMESTRAL\"),\"REVISAR FRECUENCIAS\",IF(AND(N23=\"TRIMESTRAL\",J23=\"ANUAL\"),\"REVISAR FRECUENCIAS\",IF(AND(N23=\"MENSUAL\",J23=\"MENSUAL\"),N17,IF(AND(N23=\"MENSUAL\",J23=\"TRIMESTRAL\"),\"REVISAR FRECUENCIAS\",IF(AND(N23=\"MENSUAL\",J23=\"SEMESTRAL\"),\"REVISAR FRECUENCIAS\",IF(AND(N23=\"MENSUAL\",J23=\"ANUAL\"),\"REVISAR FRECUENCIAS\",\"\"))))))))))))))))","v":35},{"$f":"IF(AND(N23=\"ANUAL\",J23=\"MENSUAL\"),N17/12+D50,IF(AND(N23=\"ANUAL\",J23=\"TRIMESTRAL\"),N17/4+D50,IF(AND(N23=\"ANUAL\",J23=\"SEMESTRAL\"),N17/2+D50,IF(AND(N23=\"SEMESTRAL\",J23=\"MENSUAL\"),N17/6+D50,IF(AND(N23=\"SEMESTRAL\",J23=\"TRIMESTRAL\"),N17/2+D50,IF(AND(N23=\"SEMESTRAL\",J23=\"SEMESTRAL\"),N17,IF(AND(N23=\"TRIMESTRAL\",J23=\"MENSUAL\"),N17/3+D50,IF(AND(N23=\"TRIMESTRAL\",J23=\"TRIMESTRAL\"),N17,IF(AND(N23=\"MENSUAL\",J23=\"MENSUAL\"),N17,\"\")))))))))","v":70},{"$f":"IF(AND(N23=\"ANUAL\",J23=\"MENSUAL\"),N17/12+E50,IF(AND(N23=\"ANUAL\",J23=\"TRIMESTRAL\"),N17/4+E50,IF(AND(N23=\"SEMESTRAL\",J23=\"MENSUAL\"),N17/6+E50,IF(AND(N23=\"SEMESTRAL\",J23=\"TRIMESTRAL\"),N17/2,IF(AND(N23=\"TRIMESTRAL\",J23=\"MENSUAL\"),N17/3+E50,IF(AND(N23=\"TRIMESTRAL\",J23=\"TRIMESTRAL\"),N17,IF(AND(N23=\"MENSUAL\",J23=\"MENSUAL\"),N17,\"\")))))))","v":""},{"$f":"IF(AND(N23=\"ANUAL\",J23=\"MENSUAL\"),N17/12+F50,IF(AND(N23=\"ANUAL\",J23=\"TRIMESTRAL\"),N17/4+F50,IF(AND(N23=\"SEMESTRAL\",J23=\"MENSUAL\"),N17/6+F50,IF(AND(N23=\"SEMESTRAL\",J23=\"TRIMESTRAL\"),N17/2+F50,IF(AND(N23=\"TRIMESTRAL\",J23=\"MENSUAL\"),N17/3,IF(AND(N23=\"TRIMESTRAL\",J23=\"TRIMESTRAL\"),N17,IF(AND(N23=\"MENSUAL\",J23=\"MENSUAL\"),N17,\"\")))))))","v":""},{"$f":"IF(AND($N$23=\"ANUAL\",$J$23=\"MENSUAL\"),$N$17/12+G50,IF(AND(N23=\"SEMESTRAL\",J23=\"MENSUAL\"),N17/6+G50,IF(AND(N23=\"TRIMESTRAL\",J23=\"MENSUAL\"),N17/3+G50,IF(AND(N23=\"MENSUAL\",J23=\"MENSUAL\"),N17,\"\"))))","v":""},{"$f":"IF(AND($N$23=\"ANUAL\",$J$23=\"MENSUAL\"),$N$17/12+H50,IF(AND(N23=\"SEMESTRAL\",J23=\"MENSUAL\"),N17/6+H50,IF(AND(N23=\"TRIMESTRAL\",J23=\"MENSUAL\"),N17/3+H50,IF(AND(N23=\"MENSUAL\",J23=\"MENSUAL\"),N17,\"\"))))","v":""},{"$f":"IF(AND($N$23=\"ANUAL\",$J$23=\"MENSUAL\"),$N$17/12+I50,IF(AND(N23=\"SEMESTRAL\",J23=\"MENSUAL\"),N17/6,IF(AND(N23=\"TRIMESTRAL\",J23=\"MENSUAL\"),N17/3,IF(AND(N23=\"MENSUAL\",J23=\"MENSUAL\"),N17,\"\"))))","v":""},{"$f":"IF(AND($N$23=\"ANUAL\",$J$23=\"MENSUAL\"),$N$17/12+J50,IF(AND(N23=\"SEMESTRAL\",J23=\"MENSUAL\"),N17/6+J50,IF(AND(N23=\"TRIMESTRAL\",J23=\"MENSUAL\"),N17/3+J50,IF(AND(N23=\"MENSUAL\",J23=\"MENSUAL\"),N17,\"\"))))","v":""},{"$f":"IF(AND($N$23=\"ANUAL\",$J$23=\"MENSUAL\"),$N$17/12+K50,IF(AND(N23=\"SEMESTRAL\",J23=\"MENSUAL\"),N17/6+K50,IF(AND(N23=\"TRIMESTRAL\",J23=\"MENSUAL\"),N17/3+K50,IF(AND(N23=\"MENSUAL\",J23=\"MENSUAL\"),N17,\"\"))))","v":""},{"$f":"IF(AND($N$23=\"ANUAL\",$J$23=\"MENSUAL\"),$N$17/12+L50,IF(AND(N23=\"SEMESTRAL\",J23=\"MENSUAL\"),N17/6+L50,IF(AND(N23=\"TRIMESTRAL\",J23=\"MENSUAL\"),N17/3,IF(AND(N23=\"MENSUAL\",J23=\"MENSUAL\"),N17,\"\"))))","v":""},{"$f":"IF(AND($N$23=\"ANUAL\",$J$23=\"MENSUAL\"),$N$17/12+M50,IF(AND(N23=\"SEMESTRAL\",J23=\"MENSUAL\"),N17/6+M50,IF(AND(N23=\"TRIMESTRAL\",J23=\"MENSUAL\"),N17/3+M50,IF(AND(N23=\"MENSUAL\",J23=\"MENSUAL\"),N17,\"\"))))","v":""},{"$f":"IF(AND($N$23=\"ANUAL\",$J$23=\"MENSUAL\"),$N$17/12+N50,IF(AND(N23=\"SEMESTRAL\",J23=\"MENSUAL\"),N17/6+N50,IF(AND(N23=\"TRIMESTRAL\",J23=\"MENSUAL\"),N17/3+N50,IF(AND(N23=\"MENSUAL\",J23=\"MENSUAL\"),N17,\"\"))))","v":""}]
[]
[null,null,"NIVEL DE SEGREGACIÓN *"]
[null,null,"UNIDAD SEGREGADA (Ej. Facultad, Programa Académico, Área)",null,null,null,"RESULTADO",null,null,null,"ANÁLISIS DE DATOS SEGREGADO"]
[]
[]
[]
[]
[]
[]
[]
[]
[]
[]
[]
[]
[]
[]
[]
[]
[]
[]
[]
[]
[]
[null,null,null,null,null,null,"Estratégico",null,null,"Eficacia"]
[null,null,null,null,null,null,"Misional",null,null,"Eficiencia"]
[null,null,null,null,null,null,"Apoyo",null,null,"Acreditación"]
[null,null,null,null,null,null,"Seguimiento, Medición, Análisis y Evaluación",null,null,"Positiva"]
[null,null,null,null,null,null,"Direccionamiento Estratégico",null,null,"Negativa"]
[null,null,null,null,null,null,"Planeación Institucional",null,null,"Por Unidad Regional"]
[null,null,null,null,null,null,"Proyectos Especiales y Relaciones Interinstitucionales",null,null,"Por Facultad"]
[null,null,null,null,null,null,"Sistemas Integrados",null,null,"Por Programa Académico"]
[null,null,null,null,null,null,"Autoevaluación y Acreditación",null,null,"Por área"]
[null,null,null,null,null,null,"Comunicaciones",null,null,"Por Laboratorio"]
[null,null,null,null,null,null,"Formación y Aprendizaje",null,null,"Otros"]
[null,null,null,null,null,null,"Ciencia, Tecnología e Innovación",null,null,"No Aplica"]
[null,null,null,null,null,null,"Interacción Social Universitaria"]
[null,null,null,null,null,null,"Bienestar Universitario"]
[null,null,null,null,null,null,"Admisiones y Registro"]
[null,null,null,null,null,null,"Graduados"]
[null,null,null,null,null,null,"Dialogando con el Mundo"]
[null,null,null,null,null,null,"Talento Humano"]
[null,null,null,null,null,null,"Jurídica"]
[null,null,null,null,null,null,"Financiera"]
[null,null,null,null,null,null,"Sistemas y Tecnología"]
[null,null,null,null,null,null,"Bienes y Servicios"]
[null,null,null,null,null,null,"Documental"]
[null,null,null,null,null,null,"Apoyo Académico"]
[null,null,null,null,null,null,"Control Interno"]
[null,null,null,null,null,null,"Control Disciplinario"]
[null,null,null,null,null,null,"Servicio de Atención al Ciudadano"]

{"sheet":"MCT-3","index":2,"n_rows":99,"n_cols":15,"rows_kept":99,"cut":false,"hidden":false,"merged":[[58,2,58,5],[58,6,58,9],[58,10,58,14],[59,2,59,5],[59,6,59,9],[59,10,59,14],[56,2,56,5],[56,6,56,9],[56,10,56,14],[57,2,57,5],[57,6,57,9],[57,10,57,14],[54,2,54,5],[54,6,54,9],[54,10,54,14],[55,2,55,5],[55,6,55,9],[55,10,55,14],[26,18,27,19],[44,2,44,14],[51,2,51,14],[52,2,52,5],[52,6,52,9],[52,10,52,14],[53,2,53,5],[53,6,53,9],[53,10,53,14],[26,17,27,17],[22,7,23,8],[26,20,27,20],[26,21,27,21],[27,9,32,14],[33,9,33,14],[22,9,23,10],[22,11,23,12],[22,13,23,14],[25,2,25,14],[26,2,42,8],[26,9,26,14],[34,9,39,14],[40,9,40,14],[41,9,41,14],[18,20,25,20],[18,21,25,21],[19,2,21,3],[16,15,17,15],[16,16,17,16],[16,17,17,17],[16,18,17,21],[17,2,18,3],[17,4,18,10],[17,11,18,12],[17,13,18,14],[18,17,25,17],[18,18,25,19],[19,4,21,6],[19,7,21,8],[19,9,21,10],[19,11,19,14],[22,2,23,3],[22,4,23,6],[13,2,13,3],[13,4,13,14],[14,2,14,14],[15,2,15,14],[16,2,16,3],[16,4,16,6],[16,7,16,8],[16,9,16,10],[16,11,16,12],[16,13,16,14],[12,2,12,3],[12,4,12,14],[1,1,3,2],[4,2,7,3],[4,4,4,11],[4,12,4,14],[5,4,5,11],[5,12,5,14],[6,4,7,11],[6,12,6,14],[7,12,7,14],[9,2,10,14],[11,2,11,3],[11,4,11,7],[11,8,11,9],[11,10,11,14]]}
[]
[null,"      REGRESAR"]
[]
[]
[null,null,null,null,"MACROPROCESO ESTRATÉGICO",null,null,null,null,null,null,null,"CÓDIGO: ESGr027"]
[null,null,null,null,"PROCESO GESTIÓN SISTEMAS INTEGRADOS",null,null,null,null,null,null,null,"VERSIÓN: 8"]
[null,null,null,null,"MATRIZ DE MEDICIÓN Y SEGUIMIENTO A LOS PROCESOS DE GESTIÓN",null,null,null,null,null,null,null,"VIGENCIA: 2023-07-28"]
[null,null,null,null,null,null,null,null,null,null,null,null,"PÁGINA: 2 de 5"]
[]
[null,null,"FICHA DE INDICADOR"]
[]
[null,null,"MACROPROCESO",null,"Misional",null,null,null,"NOMBRE DEL INDICADOR",null,"Grupos de investigación avalados institucionalmente y registrados ante MinCiencias"]
[null,null,"PROCESO GESTIÓN",null,"Ciencia, Tecnología e Innovación"]
[null,null,"RESPONSABLE DE MEDICIÓN",null,"Director(a) de Investigación Universitaria"]
[]
[null,null,"1. COMPORTAMIENTO DE INDICADOR"]
[null,null,"CLASIFICACIÓN DE LA MEDICIÓN ",null,2,null,null,"TIPO DE INDICADOR",null,"Eficiencia",null,"META",null,40]
[null,null,"FÓRMULA",null,"Número ponderado de Grupos de la Universidad sujeto a convocatoria de MinCiencias",null,null,null,null,null,null,"UNIDAD DE MEDIDA",null,"Número de grupos "]
[]
[null,null,"TENDENCIA",null,"Positiva",null,null,"NIVEL DE SEGREGACIÓN *",null,"No Aplica",null,"ESCALA"]
[null,null,null,null,null,null,null,null,null,null,null,"Deficiente","Aceptable","Bueno","Excelente"]
[null,null,null,null,null,null,null,null,null,null,null,"0 - 13","14 - 25","26 - 39",">40"]
[null,null,"ORIGEN DE DATOS",null,"Página MinCiencias, GrupLAC",null,null,"FRECUENCIA DE LA MEDICIÓN",null,"SEMESTRAL",null,"FRECUENCIA DE RESULTADO",null,"ANUAL"]
[]
[]
[null,null,"RESULTADOS"]
[null,null,null,null,null,null,null,null,null,"ANÁLISIS DE DATOS\nLos datos indican un crecimiento en los acompañamientos entre el primer trimestre y \nel segundo trimestre de mas del 100%, por la contratación del personal de la oficina\nEn el tercer trimestre se muestra un decrecimiento con respecto al periodo anterior\npor las vacaciones a mitad de año, las personas se reintegraron entre julio y agosto."]
[null,null,null,null,null,null,null,null,null,"I SEMESTRE: La Universidad de Cundinamarca Actualmente cuenta con 45 Grupos de Investigación avalados institucionalmente, de los cuales 39 estan categorizados segun la ultima medicion realizada por el Ministerio de Ciencia, Tecnología e Innovación  y 7 grupos de investigacion estan registrados ante el Ministerio de Ciencia, Tecnología e Innovación.\n\nII SEMESTRE: La Universidad de Cundinamarca Actualmente cuenta con 45 Grupos de Investigación avalados institucionalmente, de los cuales 39 estan categorizados segun la medicion realizada por el Ministerio de Ciencia, Tecnología e Innovación en el año 2021, y 7 grupos de investigacion estan registrados ante el Ministerio de Ciencia, Tecnología e Innovación.\n\nSe esperana los resultados de medicion realizada en el año 2024 por el Ministerio de Ciencia, Tecnología e Innovación."]
[]
[]
[]
[]
[]
[null,null,null,null,null,null,null,null,null,"ACCIÓN FORMULADA\nReformular la meta para el próximo año dependiendo de los recursos asignados."]
[null,null,null,null,null,null,null,null,null,"I SEMESTRE: La estrategia utilizada para lograr la meta establecida se enfoca en el seguimiento y acompañamiento permanente a los Grupos de Investigación avalados institucionalmente y que se encuentran categorizados y registrados ante el Ministerio de Ciencia, Tecnología e Innovación con el fin de mejorar y fortalecer las categorias.\n\nII SEMESTRE: La estrategia utilizada se enfoca en el seguimiento y acompañamiento permanente a los Grupos de Investigación avalados institucionalmente que se encuentran categorizados y registrados ante el Ministerio de Ciencia, Tecnología e Innovación, con el fin de mejorar y fortalecer las categorías. Este proceso incluye la implementación de planes de mejora segfun la naturaleza del grupo de ivestigacion, la promoción de la publicación en revistas científicas de alto impacto, y el apoyo en la gestión de proyectos de investigación. Adicionalmente, se realizan asesorías constantes para la actualización de la información y los criterios de evaluación establecidos por el Ministerio."]
[]
[]
[]
[]
[]
[null,null,null,null,null,null,null,null,null,"RESPONSABLE "]
[null,null,null,null,null,null,null,null,null,{"$f":"E14","v":"Director(a) de Investigación Universitaria"}]
[]
[]
[null,null,"PERIODO DE EVALUACIÓN"]
[null,null,"MES",{"$f":"IF(J23=\"MENSUAL\",\"ENERO\",IF(J23=\"TRIMESTRAL\",\"MARZO\",IF(J23=\"SEMESTRAL\",\"JUNIO\",IF(J23=\"ANUAL\",YEAR(TODAY()),\"\"))))","v":"JUNIO"},{"$f":"IF(J23=\"MENSUAL\",\"FEBRERO\",IF(J23=\"TRIMESTRAL\",\"JUNIO\",IF(J23=\"SEMESTRAL\",\"DICIEMBRE\",\"\")))","v":"DICIEMBRE"},{"$f":"IF(J23=\"MENSUAL\",\"MARZO\",IF(J23=\"TRIMESTRAL\",\"SEPTIEMBRE\",\"\"))","v":""},{"$f":"IF(J23=\"MENSUAL\",\"ABRIL\",IF(J23=\"TRIMESTRAL\",\"DICIEMBRE\",\"\"))","v":""},{"$f":"IF(J23=\"MENSUAL\",\"MAYO\",\"\")","v":""},{"$f":"IF(J23=\"MENSUAL\",\"JUNIO\",\"\")","v":""},{"$f":"IF(J23=\"MENSUAL\",\"JULIO\",\"\")","v":""},{"$f":"IF(J23=\"MENSUAL\",\"AGOSTO\",\"\")","v":""},{"$f":"IF(J23=\"MENSUAL\",\"SEPTIEMBRE\",\"\")","v":""},{"$f":"IF(J23=\"MENSUAL\",\"OCTUBRE\",\"\")","v":""},{"$f":"IF(J23=\"MENSUAL\",\"NOVIEMBRE\",\"\")","v":""},{"$f":"IF(J23=\"MENSUAL\",\"DICIEMBRE\",\"\")","v":""}]
[null,null,{"$f":"E18","v":"Número ponderado de Grupos de la Universidad sujeto a convocatoria de MinCiencias"},45,45]
[null,null,{"$f":"G19","v":0}]
[null,null,"VALOR ",{"$f":"IFERROR(IF($E$17=1,D47/D48,IF($E$17=2,D47,\"\")),\"\")","v":45},45,0,0,0,0,0,0,0,0,0,0]
[null,null,"META PONDERADA",{"$f":"IF(AND(N23=\"ANUAL\",J23=\"MENSUAL\"),N17/12,IF(AND(N23=\"ANUAL\",J23=\"TRIMESTRAL\"),N17/4,IF(AND(N23=\"ANUAL\",J23=\"SEMESTRAL\"),N17/2,IF(AND(N23=\"ANUAL\",J23=\"ANUAL\"),N17,IF(AND(N23=\"SEMESTRAL\",J23=\"MENSUAL\"),N17/6,IF(AND(N23=\"SEMESTRAL\",J23=\"TRIMESTRAL\"),N17/2,IF(AND(N23=\"SEMESTRAL\",J23=\"SEMESTRAL\"),N17,IF(AND(N23=\"SEMESTRAL\",J23=\"ANUAL\"),\"REVISAR FRECUENCIAS\",IF(AND(N23=\"TRIMESTRAL\",J23=\"MENSUAL\"),N17/3,IF(AND(N23=\"TRIMESTRAL\",J23=\"TRIMESTRAL\"),N17,IF(AND(N23=\"TRIMESTRAL\",J23=\"SEMESTRAL\"),\"REVISAR FRECUENCIAS\",IF(AND(N23=\"TRIMESTRAL\",J23=\"ANUAL\"),\"REVISAR FRECUENCIAS\",IF(AND(N23=\"MENSUAL\",J23=\"MENSUAL\"),N17,IF(AND(N23=\"MENSUAL\",J23=\"TRIMESTRAL\"),\"REVISAR FRECUENCIAS\",IF(AND(N23=\"MENSUAL\",J23=\"SEMESTRAL\"),\"REVISAR FRECUENCIAS\",IF(AND(N23=\"MENSUAL\",J23=\"ANUAL\"),\"REVISAR FRECUENCIAS\",\"\"))))))))))))))))","v":20},{"$f":"IF(AND(N23=\"ANUAL\",J23=\"MENSUAL\"),N17/12+D50,IF(AND(N23=\"ANUAL\",J23=\"TRIMESTRAL\"),N17/4+D50,IF(AND(N23=\"ANUAL\",J23=\"SEMESTRAL\"),N17/2+D50,IF(AND(N23=\"SEMESTRAL\",J23=\"MENSUAL\"),N17/6+D50,IF(AND(N23=\"SEMESTRAL\",J23=\"TRIMESTRAL\"),N17/2+D50,IF(AND(N23=\"SEMESTRAL\",J23=\"SEMESTRAL\"),N17,IF(AND(N23=\"TRIMESTRAL\",J23=\"MENSUAL\"),N17/3+D50,IF(AND(N23=\"TRIMESTRAL\",J23=\"TRIMESTRAL\"),N17,IF(AND(N23=\"MENSUAL\",J23=\"MENSUAL\"),N17,\"\")))))))))","v":40},{"$f":"IF(AND(N23=\"ANUAL\",J23=\"MENSUAL\"),N17/12+E50,IF(AND(N23=\"ANUAL\",J23=\"TRIMESTRAL\"),N17/4+E50,IF(AND(N23=\"SEMESTRAL\",J23=\"MENSUAL\"),N17/6+E50,IF(AND(N23=\"SEMESTRAL\",J23=\"TRIMESTRAL\"),N17/2,IF(AND(N23=\"TRIMESTRAL\",J23=\"MENSUAL\"),N17/3+E50,IF(AND(N23=\"TRIMESTRAL\",J23=\"TRIMESTRAL\"),N17,IF(AND(N23=\"MENSUAL\",J23=\"MENSUAL\"),N17,\"\")))))))","v":""},{"$f":"IF(AND(N23=\"ANUAL\",J23=\"MENSUAL\"),N17/12+F50,IF(AND(N23=\"ANUAL\",J23=\"TRIMESTRAL\"),N17/4+F50,IF(AND(N23=\"SEMESTRAL\",J23=\"MENSUAL\"),N17/6+F50,IF(AND(N23=\"SEMESTRAL\",J23=\"TRIMESTRAL\"),N17/2+F50,IF(AND(N23=\"TRIMESTRAL\",J23=\"MENSUAL\"),N17/3,IF(AND(N23=\"TRIMESTRAL\",J23=\"TRIMESTRAL\"),N17,IF(AND(N23=\"MENSUAL\",J23=\"MENSUAL\"),N17,\"\")))))))","v":""},{"$f":"IF(AND($N$23=\"ANUAL\",$J$23=\"MENSUAL\"),$N$17/12+G50,IF(AND(N23=\"SEMESTRAL\",J23=\"MENSUAL\"),N17/6+G50,IF(AND(N23=\"TRIMESTRAL\",J23=\"MENSUAL\"),N17/3+G50,IF(AND(N23=\"MENSUAL\",J23=\"MENSUAL\"),N17,\"\"))))","v":""},{"$f":"IF(AND($N$23=\"ANUAL\",$J$23=\"MENSUAL\"),$N$17/12+H50,IF(AND(N23=\"SEMESTRAL\",J23=\"MENSUAL\"),N17/6+H50,IF(AND(N23=\"TRIMESTRAL\",J23=\"MENSUAL\"),N17/3+H50,IF(AND(N23=\"MENSUAL\",J23=\"MENSUAL\"),N17,\"\"))))","v":""},{"$f":"IF(AND($N$23=\"ANUAL\",$J$23=\"MENSUAL\"),$N$17/12+I50,IF(AND(N23=\"SEMESTRAL\",J23=\"MENSUAL\"),N17/6,IF(AND(N23=\"TRIMESTRAL\",J23=\"MENSUAL\"),N17/3,IF(AND(N23=\"MENSUAL\",J23=\"MENSUAL\"),N17,\"\"))))","v":""},{"$f":"IF(AND($N$23=\"ANUAL\",$J$23=\"MENSUAL\"),$N$17/12+J50,IF(AND(N23=\"SEMESTRAL\",J23=\"MENSUAL\"),N17/6+J50,IF(AND(N23=\"TRIMESTRAL\",J23=\"MENSUAL\"),N17/3+J50,IF(AND(N23=\"MENSUAL\",J23=\"MENSUAL\"),N17,\"\"))))","v":""},{"$f":"IF(AND($N$23=\"ANUAL\",$J$23=\"MENSUAL\"),$N$17/12+K50,IF(AND(N23=\"SEMESTRAL\",J23=\"MENSUAL\"),N17/6+K50,IF(AND(N23=\"TRIMESTRAL\",J23=\"MENSUAL\"),N17/3+K50,IF(AND(N23=\"MENSUAL\",J23=\"MENSUAL\"),N17,\"\"))))","v":""},{"$f":"IF(AND($N$23=\"ANUAL\",$J$23=\"MENSUAL\"),$N$17/12+L50,IF(AND(N23=\"SEMESTRAL\",J23=\"MENSUAL\"),N17/6+L50,IF(AND(N23=\"TRIMESTRAL\",J23=\"MENSUAL\"),N17/3,IF(AND(N23=\"MENSUAL\",J23=\"MENSUAL\"),N17,\"\"))))","v":""},{"$f":"IF(AND($N$23=\"ANUAL\",$J$23=\"MENSUAL\"),$N$17/12+M50,IF(AND(N23=\"SEMESTRAL\",J23=\"MENSUAL\"),N17/6+M50,IF(AND(N23=\"TRIMESTRAL\",J23=\"MENSUAL\"),N17/3+M50,IF(AND(N23=\"MENSUAL\",J23=\"MENSUAL\"),N17,\"\"))))","v":""},{"$f":"IF(AND($N$23=\"ANUAL\",$J$23=\"MENSUAL\"),$N$17/12+N50,IF(AND(N23=\"SEMESTRAL\",J23=\"MENSUAL\"),N17/6+N50,IF(AND(N23=\"TRIMESTRAL\",J23=\"MENSUAL\"),N17/3+N50,IF(AND(N23=\"MENSUAL\",J23=\"MENSUAL\"),N17,\"\"))))","v":""}]
[]
[null,null,"NIVEL DE SEGREGACIÓN *"]
[null,null,"UNIDAD SEGREGADA (Ej. Facultad, Programa Académico, Área)",null,null,null,"RESULTADO",null,null,null,"ANÁLISIS DE DATOS SEGREGADO"]
[]
[]
[]
[]
[]
[]
[]
[]
[]
[]
[]
[]
[]
[]
[]
[]
[]
[]
[]
[null,null,null,null,null,null,"Estratégico",null,null,"Eficacia"]
[null,null,null,null,null,null,"Misional",null,null,"Eficiencia"]
[null,null,null,null,null,null,"Apoyo",null,null,"Acreditación"]
[null,null,null,null,null,null,"Seguimiento, Medición, Análisis y Evaluación",null,null,"Positiva"]
[null,null,null,null,null,null,"Direccionamiento Estratégico",null,null,"Negativa"]
[null,null,null,null,null,null,"Planeación Institucional",null,null,"Por Unidad Regional"]
[null,null,null,null,null,null,"Proyectos Especiales y Relaciones Interinstitucionales",null,null,"Por Facultad"]
[null,null,null,null,null,null,"Sistemas Integrados",null,null,"Por Programa Académico"]
[null,null,null,null,null,null,"Autoevaluación y Acreditación",null,null,"Por área"]
[null,null,null,null,null,null,"Comunicaciones",null,null,"Por Laboratorio"]
[null,null,null,null,null,null,"Formación y Aprendizaje",null,null,"Otros"]
[null,null,null,null,null,null,"Ciencia, Tecnología e Innovación",null,null,"No Aplica"]
[null,null,null,null,null,null,"Interacción Social Universitaria"]
[null,null,null,null,null,null,"Bienestar Universitario"]
[null,null,null,null,null,null,"Admisiones y Registro"]
[null,null,null,null,null,null,"Graduados"]
[null,null,null,null,null,null,"Dialogando con el Mundo"]
[null,null,null,null,null,null,"Talento Humano"]
[null,null,null,null,null,null,"Jurídica"]
[null,null,null,null,null,null,"Financiera"]
[null,null,null,null,null,null,"Sistemas y Tecnología"]
[null,null,null,null,null,null,"Bienes y Servicios"]
[null,null,null,null,null,null,"Documental"]
[null,null,null,null,null,null,"Apoyo Académico"]
[null,null,null,null,null,null,"Control Interno"]
[null,null,null,null,null,null,"Control Disciplinario"]
[null,null,null,null,null,null,"Servicio de Atención al Ciudadano"]

{"sheet":"MCT-7","index":3,"n_rows":100,"n_cols":15,"rows_kept":100,"cut":false,"hidden":false,"merged":[[57,2,57,5],[57,6,57,9],[57,10,57,14],[58,2,58,5],[58,6,58,9],[58,10,58,14],[59,2,59,5],[59,6,59,9],[59,10,59,14],[60,2,60,5],[60,6,60,9],[60,10,60,14],[54,2,54,5],[54,6,54,9],[54,10,54,14],[56,2,56,5],[56,6,56,9],[56,10,56,14],[55,2,55,5],[55,6,55,9],[55,10,55,14],[53,2,53,5],[53,6,53,9],[53,10,53,14],[26,17,27,17],[22,7,23,8],[40,9,40,14],[41,9,41,14],[18,17,25,17],[44,2,44,14],[51,2,51,14],[52,2,52,5],[52,6,52,9],[52,10,52,14],[19,2,21,3],[26,21,27,21],[27,9,32,14],[33,9,33,14],[22,9,23,10],[22,11,23,12],[22,13,23,14],[25,2,25,14],[26,2,42,8],[26,9,26,14],[34,9,39,14],[26,20,27,20],[18,20,25,20],[26,18,27,19],[22,2,23,3],[22,4,23,6],[18,21,25,21],[16,15,17,15],[16,16,17,16],[16,17,17,17],[16,18,17,21],[17,2,18,3],[17,4,18,10],[17,11,18,12],[17,13,18,14],[18,18,25,19],[19,4,21,6],[19,7,21,8],[19,9,21,10],[19,11,19,14],[13,2,13,3],[13,4,13,14],[14,2,14,14],[15,2,15,14],[16,2,16,3],[16,4,16,6],[16,7,16,8],[16,9,16,10],[16,11,16,12],[16,13,16,14],[12,2,12,3],[12,4,12,14],[1,1,3,2],[4,2,7,3],[4,4,4,11],[4,12,4,14],[5,4,5,11],[5,12,5,14],[6,4,7,11],[6,12,6,14],[7,12,7,14],[9,2,10,14],[11,2,11,3],[11,4,11,7],[11,8,11,9],[11,10,11,14]]}
[]
[null,"      REGRESAR"]
[]
[]
[null,null,null,null,"MACROPROCESO ESTRATÉGICO",null,null,null,null,null,null,null,"CÓDIGO: ESGr027"]
[null,null,null,null,"PROCESO GESTIÓN SISTEMAS INTEGRADOS",null,null,null,null,null,null,null,"VERSIÓN: 8"]
[null,null,null,null,"MATRIZ DE MEDICIÓN Y SEGUIMIENTO A LOS PROCESOS DE GESTIÓN",null,null,null,null,null,null,null,"VIGENCIA: 2023-07-28"]
[null,null,null,null,null,null,null,null,null,null,null,null,"PÁGINA: 3 de 5"]
[]
[null,null,"FICHA DE INDICADOR"]
[]
[null,null,"MACROPROCESO",null,"Misional",null,null,null,"NOMBRE DEL INDICADOR",null,"Productos de CTeI generados por los grupos de Investigación"]
[null,null,"PROCESO GESTIÓN",null,"Ciencia, Tecnología e Innovación"]
[null,null,"RESPONSABLE DE MEDICIÓN",null,"Director(a) de Investigación Universitaria"]
[]
[null,null,"1. COMPORTAMIENTO DE INDICADOR"]
[null,null,"CLASIFICACIÓN DE LA MEDICIÓN ",null,1,null,null,"TIPO DE INDICADOR",null,"Eficacia",null,"META",null,0.95]
[null,null,"FÓRMULA",null,"Productos de CTeI generados por los grupos de Investigación / Total de Productos Proyectados *100",null,null,null,null,null,null,"UNIDAD DE MEDIDA",null,"Porcentual"]
[]
[null,null,"TENDENCIA",null,"Positiva",null,null,"NIVEL DE SEGREGACIÓN *",null,"Por Facultad",null,"ESCALA"]
[null,null,null,null,null,null,null,null,null,null,null,"Deficiente","Aceptable","Bueno","Excelente"]
[null,null,null,null,null,null,null,null,null,null,null,"0% - 50%","51% - 75%","76% - 80%","81% - 100%"]
[null,null,"ORIGEN DE DATOS",null,"Reportes GrupLAC",null,null,"FRECUENCIA DE LA MEDICIÓN",null,"SEMESTRAL",null,"FRECUENCIA DE RESULTADO",null,"ANUAL"]
[]
[]
[null,null,"RESULTADOS"]
[null,null,null,null,null,null,null,null,null,"ANÁLISIS DE DATOS\nLos datos indican un crecimiento en los acompañamientos entre el primer trimestre y \nel segundo trimestre de mas del 100%, por la contratación del personal de la oficina\nEn el tercer trimestre se muestra un decrecimiento con respecto al periodo anterior\npor las vacaciones a mitad de año, las personas se reintegraron entre julio y agosto."]
[null,null,null,null,null,null,null,null,null,"I SEMESTRE: Durante el primer semestre de la vigencia 2024 se generarón un total de 452 productos clasificados de la siguiente manera: \n\nProductos de Generación de Nuevo conocimiento: 45\nProductos de Desarrollo Tecnologico e innovación: 48\nProductos de Apropiación Social del Conocimiento: 238\nProductos de Formación del Recurso Humano: 121\n\nII SEMESTRE: Dadas las diversas situaciones presentadas en el desarrollo y ejecución de los proyectos aprobados en las convocatorias V y VI, no se logró finalizar los proyectos de investigación en diciembre de 2024. Por tal motivo, el Comité para el Desarrollo de la Investigación avalo una prórroga en el término de ejecución hasta el 30 de mayo de 2025 para la finalización y cierre de los proyectos de investigación aprobados en el marco de las V y VI convocatorias internas."]
[]
[]
[]
[]
[]
[null,null,null,null,null,null,null,null,null,"ACCIÓN FORMULADA\nReformular la meta para el próximo año dependiendo de los recursos asignados."]
[null,null,null,null,null,null,null,null,null,"I SEMESTRE: Las estrategias implementadas para el logro de la productividad consiste en solicitarle a los líderes de los Grupos de Investigación la actualización de producción en el GrupLAC, acompañamientos permanentes a los grupos de investigación para el correcto y oportuno reporte de la información a través del CvLAC y GrupLAC respectivamente.\n\nII SEMESTRE: Se está evaluando la viabilidad de modificar el indicador, dado que la medición de la productividad de los grupos de investigación se realiza anualmente. En consecuencia, las modificaciones propuestas consisten en ajustar la frecuencia de medición a una base anual."]
[]
[]
[]
[]
[]
[null,null,null,null,null,null,null,null,null,"RESPONSABLE "]
[null,null,null,null,null,null,null,null,null,{"$f":"E14","v":"Director(a) de Investigación Universitaria"}]
[]
[]
[null,null,"PERIODO DE EVALUACIÓN"]
[null,null,"MES",{"$f":"IF(J23=\"MENSUAL\",\"ENERO\",IF(J23=\"TRIMESTRAL\",\"MARZO\",IF(J23=\"SEMESTRAL\",\"JUNIO\",IF(J23=\"ANUAL\",YEAR(TODAY()),\"\"))))","v":"JUNIO"},{"$f":"IF(J23=\"MENSUAL\",\"FEBRERO\",IF(J23=\"TRIMESTRAL\",\"JUNIO\",IF(J23=\"SEMESTRAL\",\"DICIEMBRE\",\"\")))","v":"DICIEMBRE"},{"$f":"IF(J23=\"MENSUAL\",\"MARZO\",IF(J23=\"TRIMESTRAL\",\"SEPTIEMBRE\",\"\"))","v":""},{"$f":"IF(J23=\"MENSUAL\",\"ABRIL\",IF(J23=\"TRIMESTRAL\",\"DICIEMBRE\",\"\"))","v":""},{"$f":"IF(J23=\"MENSUAL\",\"MAYO\",\"\")","v":""},{"$f":"IF(J23=\"MENSUAL\",\"JUNIO\",\"\")","v":""},{"$f":"IF(J23=\"MENSUAL\",\"JULIO\",\"\")","v":""},{"$f":"IF(J23=\"MENSUAL\",\"AGOSTO\",\"\")","v":""},{"$f":"IF(J23=\"MENSUAL\",\"SEPTIEMBRE\",\"\")","v":""},{"$f":"IF(J23=\"MENSUAL\",\"OCTUBRE\",\"\")","v":""},{"$f":"IF(J23=\"MENSUAL\",\"NOVIEMBRE\",\"\")","v":""},{"$f":"IF(J23=\"MENSUAL\",\"DICIEMBRE\",\"\")","v":""}]
[null,null,"Productos de CTeI generados por los grupos de Investigación",452,0]
[null,null,"productos proyectados",136,0]
[null,null,"VALOR ",{"$f":"D47/D48*1","v":3.3235294117647061},{"$f":"E47/E48*1","v":{"$error":"#DIV/0!"}},{"$f":"IFERROR(IF($E$17=1,F47/F48,IF($E$17=2,F47,\"\")),\"\")","v":""},"","","","","","","","",""]
[null,null,"META PONDERADA",{"$f":"IF(AND(N23=\"ANUAL\",J23=\"MENSUAL\"),N17/12,IF(AND(N23=\"ANUAL\",J23=\"TRIMESTRAL\"),N17/4,IF(AND(N23=\"ANUAL\",J23=\"SEMESTRAL\"),N17/2,IF(AND(N23=\"ANUAL\",J23=\"ANUAL\"),N17,IF(AND(N23=\"SEMESTRAL\",J23=\"MENSUAL\"),N17/6,IF(AND(N23=\"SEMESTRAL\",J23=\"TRIMESTRAL\"),N17/2,IF(AND(N23=\"SEMESTRAL\",J23=\"SEMESTRAL\"),N17,IF(AND(N23=\"SEMESTRAL\",J23=\"ANUAL\"),\"REVISAR FRECUENCIAS\",IF(AND(N23=\"TRIMESTRAL\",J23=\"MENSUAL\"),N17/3,IF(AND(N23=\"TRIMESTRAL\",J23=\"TRIMESTRAL\"),N17,IF(AND(N23=\"TRIMESTRAL\",J23=\"SEMESTRAL\"),\"REVISAR FRECUENCIAS\",IF(AND(N23=\"TRIMESTRAL\",J23=\"ANUAL\"),\"REVISAR FRECUENCIAS\",IF(AND(N23=\"MENSUAL\",J23=\"MENSUAL\"),N17,IF(AND(N23=\"MENSUAL\",J23=\"TRIMESTRAL\"),\"REVISAR FRECUENCIAS\",IF(AND(N23=\"MENSUAL\",J23=\"SEMESTRAL\"),\"REVISAR FRECUENCIAS\",IF(AND(N23=\"MENSUAL\",J23=\"ANUAL\"),\"REVISAR FRECUENCIAS\",\"\"))))))))))))))))","v":0.47499999999999998},{"$f":"IF(AND(N23=\"ANUAL\",J23=\"MENSUAL\"),N17/12+D50,IF(AND(N23=\"ANUAL\",J23=\"TRIMESTRAL\"),N17/4+D50,IF(AND(N23=\"ANUAL\",J23=\"SEMESTRAL\"),N17/2+D50,IF(AND(N23=\"SEMESTRAL\",J23=\"MENSUAL\"),N17/6+D50,IF(AND(N23=\"SEMESTRAL\",J23=\"TRIMESTRAL\"),N17/2+D50,IF(AND(N23=\"SEMESTRAL\",J23=\"SEMESTRAL\"),N17,IF(AND(N23=\"TRIMESTRAL\",J23=\"MENSUAL\"),N17/3+D50,IF(AND(N23=\"TRIMESTRAL\",J23=\"TRIMESTRAL\"),N17,IF(AND(N23=\"MENSUAL\",J23=\"MENSUAL\"),N17,\"\")))))))))","v":0.95},{"$f":"IF(AND(N23=\"ANUAL\",J23=\"MENSUAL\"),N17/12+E50,IF(AND(N23=\"ANUAL\",J23=\"TRIMESTRAL\"),N17/4+E50,IF(AND(N23=\"SEMESTRAL\",J23=\"MENSUAL\"),N17/6+E50,IF(AND(N23=\"SEMESTRAL\",J23=\"TRIMESTRAL\"),N17/2,IF(AND(N23=\"TRIMESTRAL\",J23=\"MENSUAL\"),N17/3+E50,IF(AND(N23=\"TRIMESTRAL\",J23=\"TRIMESTRAL\"),N17,IF(AND(N23=\"MENSUAL\",J23=\"MENSUAL\"),N17,\"\")))))))","v":""},{"$f":"IF(AND(N23=\"ANUAL\",J23=\"MENSUAL\"),N17/12+F50,IF(AND(N23=\"ANUAL\",J23=\"TRIMESTRAL\"),N17/4+F50,IF(AND(N23=\"SEMESTRAL\",J23=\"MENSUAL\"),N17/6+F50,IF(AND(N23=\"SEMESTRAL\",J23=\"TRIMESTRAL\"),N17/2+F50,IF(AND(N23=\"TRIMESTRAL\",J23=\"MENSUAL\"),N17/3,IF(AND(N23=\"TRIMESTRAL\",J23=\"TRIMESTRAL\"),N17,IF(AND(N23=\"MENSUAL\",J23=\"MENSUAL\"),N17,\"\")))))))","v":""},{"$f":"IF(AND($N$23=\"ANUAL\",$J$23=\"MENSUAL\"),$N$17/12+G50,IF(AND(N23=\"SEMESTRAL\",J23=\"MENSUAL\"),N17/6+G50,IF(AND(N23=\"TRIMESTRAL\",J23=\"MENSUAL\"),N17/3+G50,IF(AND(N23=\"MENSUAL\",J23=\"MENSUAL\"),N17,\"\"))))","v":""},{"$f":"IF(AND($N$23=\"ANUAL\",$J$23=\"MENSUAL\"),$N$17/12+H50,IF(AND(N23=\"SEMESTRAL\",J23=\"MENSUAL\"),N17/6+H50,IF(AND(N23=\"TRIMESTRAL\",J23=\"MENSUAL\"),N17/3+H50,IF(AND(N23=\"MENSUAL\",J23=\"MENSUAL\"),N17,\"\"))))","v":""},{"$f":"IF(AND($N$23=\"ANUAL\",$J$23=\"MENSUAL\"),$N$17/12+I50,IF(AND(N23=\"SEMESTRAL\",J23=\"MENSUAL\"),N17/6,IF(AND(N23=\"TRIMESTRAL\",J23=\"MENSUAL\"),N17/3,IF(AND(N23=\"MENSUAL\",J23=\"MENSUAL\"),N17,\"\"))))","v":""},{"$f":"IF(AND($N$23=\"ANUAL\",$J$23=\"MENSUAL\"),$N$17/12+J50,IF(AND(N23=\"SEMESTRAL\",J23=\"MENSUAL\"),N17/6+J50,IF(AND(N23=\"TRIMESTRAL\",J23=\"MENSUAL\"),N17/3+J50,IF(AND(N23=\"MENSUAL\",J23=\"MENSUAL\"),N17,\"\"))))","v":""},{"$f":"IF(AND($N$23=\"ANUAL\",$J$23=\"MENSUAL\"),$N$17/12+K50,IF(AND(N23=\"SEMESTRAL\",J23=\"MENSUAL\"),N17/6+K50,IF(AND(N23=\"TRIMESTRAL\",J23=\"MENSUAL\"),N17/3+K50,IF(AND(N23=\"MENSUAL\",J23=\"MENSUAL\"),N17,\"\"))))","v":""},{"$f":"IF(AND($N$23=\"ANUAL\",$J$23=\"MENSUAL\"),$N$17/12+L50,IF(AND(N23=\"SEMESTRAL\",J23=\"MENSUAL\"),N17/6+L50,IF(AND(N23=\"TRIMESTRAL\",J23=\"MENSUAL\"),N17/3,IF(AND(N23=\"MENSUAL\",J23=\"MENSUAL\"),N17,\"\"))))","v":""},{"$f":"IF(AND($N$23=\"ANUAL\",$J$23=\"MENSUAL\"),$N$17/12+M50,IF(AND(N23=\"SEMESTRAL\",J23=\"MENSUAL\"),N17/6+M50,IF(AND(N23=\"TRIMESTRAL\",J23=\"MENSUAL\"),N17/3+M50,IF(AND(N23=\"MENSUAL\",J23=\"MENSUAL\"),N17,\"\"))))","v":""},{"$f":"IF(AND($N$23=\"ANUAL\",$J$23=\"MENSUAL\"),$N$17/12+N50,IF(AND(N23=\"SEMESTRAL\",J23=\"MENSUAL\"),N17/6+N50,IF(AND(N23=\"TRIMESTRAL\",J23=\"MENSUAL\"),N17/3+N50,IF(AND(N23=\"MENSUAL\",J23=\"MENSUAL\"),N17,\"\"))))","v":""}]
[]
[null,null,"NIVEL DE SEGREGACIÓN *"]
[null,null,"UNIDAD SEGREGADA (Ej. Facultad, Programa Académico, Área)",null,null,null,"RESULTADO",null,null,null,"ANÁLISIS DE DATOS SEGREGADO"]
[]
[]
[]
[]
[]
[]
[]
[]
[]
[]
[]
[]
[]
[]
[]
[]
[]
[]
[]
[]
[null,null,null,null,null,null,"Estratégico",null,null,"Eficacia"]
[null,null,null,null,null,null,"Misional",null,null,"Eficiencia"]
[null,null,null,null,null,null,"Apoyo",null,null,"Acreditación"]
[null,null,null,null,null,null,"Seguimiento, Medición, Análisis y Evaluación",null,null,"Positiva"]
[null,null,null,null,null,null,"Direccionamiento Estratégico",null,null,"Negativa"]
[null,null,null,null,null,null,"Planeación Institucional",null,null,"Por Unidad Regional"]
[null,null,null,null,null,null,"Proyectos Especiales y Relaciones Interinstitucionales",null,null,"Por Facultad"]
[null,null,null,null,null,null,"Sistemas Integrados",null,null,"Por Programa Académico"]
[null,null,null,null,null,null,"Autoevaluación y Acreditación",null,null,"Por área"]
[null,null,null,null,null,null,"Comunicaciones",null,null,"Por Laboratorio"]
[null,null,null,null,null,null,"Formación y Aprendizaje",null,null,"Otros"]
[null,null,null,null,null,null,"Ciencia, Tecnología e Innovación",null,null,"No Aplica"]
[null,null,null,null,null,null,"Interacción Social Universitaria"]
[null,null,null,null,null,null,"Bienestar Universitario"]
[null,null,null,null,null,null,"Admisiones y Registro"]
[null,null,null,null,null,null,"Graduados"]
[null,null,null,null,null,null,"Dialogando con el Mundo"]
[null,null,null,null,null,null,"Talento Humano"]
[null,null,null,null,null,null,"Jurídica"]
[null,null,null,null,null,null,"Financiera"]
[null,null,null,null,null,null,"Sistemas y Tecnología"]
[null,null,null,null,null,null,"Bienes y Servicios"]
[null,null,null,null,null,null,"Documental"]
[null,null,null,null,null,null,"Apoyo Académico"]
[null,null,null,null,null,null,"Control Interno"]
[null,null,null,null,null,null,"Control Disciplinario"]
[null,null,null,null,null,null,"Servicio de Atención al Ciudadano"]

{"sheet":"MCT-8","index":4,"n_rows":87,"n_cols":15,"rows_kept":87,"cut":false,"hidden":false,"merged":[[58,2,58,5],[58,6,58,9],[58,10,58,14],[59,2,59,5],[59,6,59,9],[59,10,59,14],[56,2,56,5],[56,6,56,9],[56,10,56,14],[57,2,57,5],[57,6,57,9],[57,10,57,14],[54,2,54,5],[54,6,54,9],[54,10,54,14],[55,2,55,5],[55,6,55,9],[55,10,55,14],[53,2,53,5],[53,6,53,9],[53,10,53,14],[26,15,27,15],[27,9,32,14],[33,9,33,14],[34,9,39,14],[40,9,40,14],[41,9,41,14],[44,2,44,14],[51,2,51,14],[52,2,52,5],[52,6,52,9],[52,10,52,14],[22,13,23,14],[23,2,23,3],[25,2,25,14],[26,2,42,8],[26,9,26,14],[42,9,42,14],[22,4,23,6],[22,2,22,3],[22,7,23,8],[22,9,23,10],[22,11,23,12],[19,2,21,3],[19,4,21,6],[19,7,21,8],[19,9,21,10],[19,11,19,14],[16,15,17,15],[17,2,18,3],[17,4,17,5],[17,6,17,10],[17,11,18,12],[17,13,18,14],[18,4,18,5],[18,6,18,10],[16,2,16,3],[16,4,16,6],[16,7,16,8],[16,9,16,10],[16,11,16,12],[16,13,16,14],[15,2,15,14],[8,2,8,14],[9,2,10,14],[11,2,11,3],[11,4,11,7],[11,8,11,9],[11,10,11,14],[12,2,12,3],[12,4,12,14],[13,2,13,3],[13,4,13,14],[14,2,14,14],[1,1,3,2],[4,2,7,3],[4,4,4,11],[4,12,4,14],[5,4,5,11],[5,12,5,14],[6,4,7,11],[6,12,6,14],[7,12,7,14]]}
[]
[null,"      REGRESAR"]
[]
[]
[null,null,null,null,"MACROPROCESO ESTRATÉGICO",null,null,null,null,null,null,null,"CÓDIGO: ESGr027"]
[null,null,null,null,"PROCESO GESTIÓN SISTEMAS INTEGRADOS",null,null,null,null,null,null,null,"VERSIÓN: 8"]
[null,null,null,null,"MATRIZ DE MEDICIÓN Y SEGUIMIENTO A LOS PROCESOS DE GESTIÓN",null,null,null,null,null,null,null,"VIGENCIA: 2023-07-28"]
[null,null,null,null,null,null,null,null,null,null,null,null,"PÁGINA: 4 de 5"]
[]
[null,null,"FICHA DE INDICADOR"]
[]
[null,null,"MACROPROCESO",null,"Misional",null,null,null,"NOMBRE DEL INDICADOR",null,"Participación de los semilleros de investigación en Actividades de CTeI"]
[null,null,"PROCESO GESTIÓN",null,"Ciencia, Tecnología e Innovación"]
[null,null,"RESPONSABLE DE MEDICIÓN",null,"Director(a) de Investigación Universitaria"]
[]
[null,null,"1. COMPORTAMIENTO DE INDICADOR"]
[null,null,"CLASIFICACIÓN DE LA MEDICIÓN",null,1,null,null,"TIPO DE INDICADOR",null,"Eficacia",null,"META ANUAL",null,0.85]
[null,null,"FÓRMULA",null,"NUMERADOR",null,"Participación de los semilleros de investigación ",null,null,null,null,"UNIDAD DE MEDIDA",null,"Porcentual"]
[null,null,null,null,"DENOMINADOR",null,"Semilleros Activos *100"]
[null,null,"TENDENCIA",null,"Positiva",null,null,"NIVEL DE SEGREGACIÓN *",null,"Por Facultad",null,"ESCALA"]
[null,null,null,null,null,null,null,null,null,null,null,"Deficiente","Aceptable","Bueno","Excelente"]
[null,null,null,null,null,null,null,null,null,null,null,"0% - 50%","50.1% - 75.9%","76% - 80%",">80%"]
[null,null,"ORIGEN DE DATOS NUMERADOR",null,"Informes de participación de los semilleros",null,null,"FRECUENCIA DE LA MEDICIÓN",null,"SEMESTRAL",null,"FRECUENCIA DE RESULTADO",null,"ANUAL"]
[null,null,"ORIGEN DE DATOS DENOMINADOR"]
[]
[null,null,"RESULTADOS"]
[null,null,null,null,null,null,null,null,null,"ANÁLISIS DE DATOS"]
[null,null,null,null,null,null,null,null,null,"I SEMESTRE: Durante el IPA-2024 los estudiantes vinculados a semilleros de investigación participaron en diferentes eventos gestionados desde la Dirección de Investigación, los cuales se describen a continuacion:\n\nBanco de semilleros: 1172\nJornadas de sensibilizacion: 53\nTotal 1225\n\nCabe resaltar que el XXll Encuentro regional de semilleros de investigación de la fundación Red Colombiana de semilleros de investigación  REDCOLS fue aplazado para el 28,29 y 30 de agosto debido a los cambios administrativos presentados en la Institucion.\n\nII SEMESTRE: Durante el segundo semestre del año 2024 los estudiantes vinculados a semilleros de investigación participaron en diferentes eventos gestionados desde la Dirección de Investigación, los cuales se describen a continuacion:\n\nVl Encuentro de semilleros de investigación: 83\nParticipación redcolsi regional: 71\nParticipación redcolsi nacional:17\nBanco de semilleros: 1159"]
[]
[]
[]
[]
[]
[null,null,null,null,null,null,null,null,null,"ACCIÓN FORMULADA"]
[null,null,null,null,null,null,null,null,null,"I SEMESTRE: Las estrategias realizadas para lograr gran participacion de los semilleristas y semilleros son mediante medios de divulgación como: pagina web institucional, redes sociales, correos electronicos, jornadas de sensibilización a semilleros mediante Teams, publicación en redes sociales y presentación de solicitudes al comité para el desarrollo de la investigación con los formatos correspondientes, evitando reprocesos y fortaleciendo los procesos de formación del recurso humano de estudiantes semilleristas vinculados a semilleros de investigación.\n\nII SEMESTRE: Las estrategias realizadas para lograr gran participacion de los semilleristas y semilleros son mediante medios de divulgación como: pagina web institucional, redes sociales, correos electronicos, jornadas de sensibilización a semilleros mediante Teams, publicación en redes sociales y presentación de solicitudes al comité para el desarrollo de la investigación con los formatos correspondientes, evitando reprocesos y fortaleciendo los procesos de formación del recurso humano de estudiantes semilleristas vinculados a semilleros de investigación."]
[]
[]
[]
[]
[]
[null,null,null,null,null,null,null,null,null,"RESPONSABLE "]
[null,null,null,null,null,null,null,null,null,{"$f":"E14","v":"Director(a) de Investigación Universitaria"}]
[]
[]
[null,null,"PERIODO DE EVALUACIÓN"]
[null,null,"MES",{"$f":"IF(J23=\"MENSUAL\",\"ENERO\",IF(J23=\"TRIMESTRAL\",\"MARZO\",IF(J23=\"SEMESTRAL\",\"JUNIO\",IF(J23=\"ANUAL\",YEAR(TODAY()),\"\"))))","v":"JUNIO"},{"$f":"IF(J23=\"MENSUAL\",\"FEBRERO\",IF(J23=\"TRIMESTRAL\",\"JUNIO\",IF(J23=\"SEMESTRAL\",\"DICIEMBRE\",\"\")))","v":"DICIEMBRE"},{"$f":"IF(J23=\"MENSUAL\",\"MARZO\",IF(J23=\"TRIMESTRAL\",\"SEPTIEMBRE\",\"\"))","v":""},{"$f":"IF(J23=\"MENSUAL\",\"ABRIL\",IF(J23=\"TRIMESTRAL\",\"DICIEMBRE\",\"\"))","v":""},{"$f":"IF(J23=\"MENSUAL\",\"MAYO\",\"\")","v":""},{"$f":"IF(J23=\"MENSUAL\",\"JUNIO\",\"\")","v":""},{"$f":"IF(J23=\"MENSUAL\",\"JULIO\",\"\")","v":""},{"$f":"IF(J23=\"MENSUAL\",\"AGOSTO\",\"\")","v":""},{"$f":"IF(J23=\"MENSUAL\",\"SEPTIEMBRE\",\"\")","v":""},{"$f":"IF(J23=\"MENSUAL\",\"OCTUBRE\",\"\")","v":""},{"$f":"IF(J23=\"MENSUAL\",\"NOVIEMBRE\",\"\")","v":""},{"$f":"IF(J23=\"MENSUAL\",\"DICIEMBRE\",\"\")","v":""}]
[null,null,{"$f":"G18","v":"Participación de los semilleros de investigación "},1225,1330]
[null,null,{"$f":"G19","v":"Semilleros Activos *100"},1172,1159]
[null,null,"VALOR ",{"$f":"IFERROR(IF($E$17=1,D47/D48,IF($E$17=2,D47,\"\")),\"\")","v":1.045221843003413},{"$f":"IFERROR(IF($E$17=1,E47/E48,IF($E$17=2,E47,\"\")),\"\")","v":1.1475409836065573},null,null,"","","","","","","",""]
[null,null,"META PONDERADA",{"$f":"IF(AND(N23=\"ANUAL\",J23=\"MENSUAL\"),N17/12,IF(AND(N23=\"ANUAL\",J23=\"TRIMESTRAL\"),N17/4,IF(AND(N23=\"ANUAL\",J23=\"SEMESTRAL\"),N17/2,IF(AND(N23=\"ANUAL\",J23=\"ANUAL\"),N17,IF(AND(N23=\"SEMESTRAL\",J23=\"MENSUAL\"),N17/6,IF(AND(N23=\"SEMESTRAL\",J23=\"TRIMESTRAL\"),N17/2,IF(AND(N23=\"SEMESTRAL\",J23=\"SEMESTRAL\"),N17,IF(AND(N23=\"SEMESTRAL\",J23=\"ANUAL\"),\"REVISAR FRECUENCIAS\",IF(AND(N23=\"TRIMESTRAL\",J23=\"MENSUAL\"),N17/3,IF(AND(N23=\"TRIMESTRAL\",J23=\"TRIMESTRAL\"),N17,IF(AND(N23=\"TRIMESTRAL\",J23=\"SEMESTRAL\"),\"REVISAR FRECUENCIAS\",IF(AND(N23=\"TRIMESTRAL\",J23=\"ANUAL\"),\"REVISAR FRECUENCIAS\",IF(AND(N23=\"MENSUAL\",J23=\"MENSUAL\"),N17,IF(AND(N23=\"MENSUAL\",J23=\"TRIMESTRAL\"),\"REVISAR FRECUENCIAS\",IF(AND(N23=\"MENSUAL\",J23=\"SEMESTRAL\"),\"REVISAR FRECUENCIAS\",IF(AND(N23=\"MENSUAL\",J23=\"ANUAL\"),\"REVISAR FRECUENCIAS\",\"\"))))))))))))))))","v":0.42499999999999999},{"$f":"IF(AND(N23=\"ANUAL\",J23=\"MENSUAL\"),N17/12+D50,IF(AND(N23=\"ANUAL\",J23=\"TRIMESTRAL\"),N17/4+D50,IF(AND(N23=\"ANUAL\",J23=\"SEMESTRAL\"),N17/2+D50,IF(AND(N23=\"SEMESTRAL\",J23=\"MENSUAL\"),N17/6+D50,IF(AND(N23=\"SEMESTRAL\",J23=\"TRIMESTRAL\"),N17/2+D50,IF(AND(N23=\"SEMESTRAL\",J23=\"SEMESTRAL\"),N17,IF(AND(N23=\"TRIMESTRAL\",J23=\"MENSUAL\"),N17/3+D50,IF(AND(N23=\"TRIMESTRAL\",J23=\"TRIMESTRAL\"),N17,IF(AND(N23=\"MENSUAL\",J23=\"MENSUAL\"),N17,\"\")))))))))","v":0.85},{"$f":"IF(AND(N23=\"ANUAL\",J23=\"MENSUAL\"),N17/12+E50,IF(AND(N23=\"ANUAL\",J23=\"TRIMESTRAL\"),N17/4+E50,IF(AND(N23=\"SEMESTRAL\",J23=\"MENSUAL\"),N17/6+E50,IF(AND(N23=\"SEMESTRAL\",J23=\"TRIMESTRAL\"),N17/2,IF(AND(N23=\"TRIMESTRAL\",J23=\"MENSUAL\"),N17/3+E50,IF(AND(N23=\"TRIMESTRAL\",J23=\"TRIMESTRAL\"),N17,IF(AND(N23=\"MENSUAL\",J23=\"MENSUAL\"),N17,\"\")))))))","v":""},{"$f":"IF(AND(N23=\"ANUAL\",J23=\"MENSUAL\"),N17/12+F50,IF(AND(N23=\"ANUAL\",J23=\"TRIMESTRAL\"),N17/4+F50,IF(AND(N23=\"SEMESTRAL\",J23=\"MENSUAL\"),N17/6+F50,IF(AND(N23=\"SEMESTRAL\",J23=\"TRIMESTRAL\"),N17/2+F50,IF(AND(N23=\"TRIMESTRAL\",J23=\"MENSUAL\"),N17/3,IF(AND(N23=\"TRIMESTRAL\",J23=\"TRIMESTRAL\"),N17,IF(AND(N23=\"MENSUAL\",J23=\"MENSUAL\"),N17,\"\")))))))","v":""},{"$f":"IF(AND($N$23=\"ANUAL\",$J$23=\"MENSUAL\"),$N$17/12+G50,IF(AND(N23=\"SEMESTRAL\",J23=\"MENSUAL\"),N17/6+G50,IF(AND(N23=\"TRIMESTRAL\",J23=\"MENSUAL\"),N17/3+G50,IF(AND(N23=\"MENSUAL\",J23=\"MENSUAL\"),N17,\"\"))))","v":""},{"$f":"IF(AND($N$23=\"ANUAL\",$J$23=\"MENSUAL\"),$N$17/12+H50,IF(AND(N23=\"SEMESTRAL\",J23=\"MENSUAL\"),N17/6+H50,IF(AND(N23=\"TRIMESTRAL\",J23=\"MENSUAL\"),N17/3+H50,IF(AND(N23=\"MENSUAL\",J23=\"MENSUAL\"),N17,\"\"))))","v":""},{"$f":"IF(AND($N$23=\"ANUAL\",$J$23=\"MENSUAL\"),$N$17/12+I50,IF(AND(N23=\"SEMESTRAL\",J23=\"MENSUAL\"),N17/6,IF(AND(N23=\"TRIMESTRAL\",J23=\"MENSUAL\"),N17/3,IF(AND(N23=\"MENSUAL\",J23=\"MENSUAL\"),N17,\"\"))))","v":""},{"$f":"IF(AND($N$23=\"ANUAL\",$J$23=\"MENSUAL\"),$N$17/12+J50,IF(AND(N23=\"SEMESTRAL\",J23=\"MENSUAL\"),N17/6+J50,IF(AND(N23=\"TRIMESTRAL\",J23=\"MENSUAL\"),N17/3+J50,IF(AND(N23=\"MENSUAL\",J23=\"MENSUAL\"),N17,\"\"))))","v":""},{"$f":"IF(AND($N$23=\"ANUAL\",$J$23=\"MENSUAL\"),$N$17/12+K50,IF(AND(N23=\"SEMESTRAL\",J23=\"MENSUAL\"),N17/6+K50,IF(AND(N23=\"TRIMESTRAL\",J23=\"MENSUAL\"),N17/3+K50,IF(AND(N23=\"MENSUAL\",J23=\"MENSUAL\"),N17,\"\"))))","v":""},{"$f":"IF(AND($N$23=\"ANUAL\",$J$23=\"MENSUAL\"),$N$17/12+L50,IF(AND(N23=\"SEMESTRAL\",J23=\"MENSUAL\"),N17/6+L50,IF(AND(N23=\"TRIMESTRAL\",J23=\"MENSUAL\"),N17/3,IF(AND(N23=\"MENSUAL\",J23=\"MENSUAL\"),N17,\"\"))))","v":""},{"$f":"IF(AND($N$23=\"ANUAL\",$J$23=\"MENSUAL\"),$N$17/12+M50,IF(AND(N23=\"SEMESTRAL\",J23=\"MENSUAL\"),N17/6+M50,IF(AND(N23=\"TRIMESTRAL\",J23=\"MENSUAL\"),N17/3+M50,IF(AND(N23=\"MENSUAL\",J23=\"MENSUAL\"),N17,\"\"))))","v":""},{"$f":"IF(AND($N$23=\"ANUAL\",$J$23=\"MENSUAL\"),$N$17/12+N50,IF(AND(N23=\"SEMESTRAL\",J23=\"MENSUAL\"),N17/6+N50,IF(AND(N23=\"TRIMESTRAL\",J23=\"MENSUAL\"),N17/3+N50,IF(AND(N23=\"MENSUAL\",J23=\"MENSUAL\"),N17,\"\"))))","v":""}]
[]
[null,null,"NIVEL DE SEGREGACIÓN *"]
[null,null,"UNIDAD SEGREGADA (Ej. Facultad, Programa Académico, Área)",null,null,null,"RESULTADO",null,null,null,"ANALISIS DE DATOS SEGREGADO"]
[null,null,"Facultad de Ciencias Administrativas, Económicas y Contables",null,null,null,234,null,null,null,"Vl Encuentro de semilleros de investigación: 23\nParticipación redcolsi regional: 23\nParticipación redcolsi nacional:7\nBanco de semilleros: 181"]
[null,null,"Facultad de Ciencias Agropecuarias",null,null,null,336,null,null,null,"Vl Encuentro de semilleros de investigación: 18\nParticipación redcolsi regional: 12\nParticipación redcolsi nacional: 4\nBanco de semilleros: 302"]
[null,null,"Facultad de Ciencias del Deporte y la Educación Física",null,null,null,154,null,null,null,"Vl Encuentro de semilleros de investigación: 5\nParticipación redcolsi regional: 2\nParticipación redcolsi nacional:2\nBanco de semilleros: 145"]
[null,null,"Facultad de Educación",null,null,null,60,null,null,null,"Vl Encuentro de semilleros de investigación: 3\nParticipación redcolsi regional: 2\nParticipación redcolsi nacional: 0\nBanco de semilleros: 55"]
[null,null,"Facultad de Ingeniería",null,null,null,382,null,null,null,"Vl Encuentro de semilleros de investigación: 19\nParticipación redcolsi regional: 25\nParticipación redcolsi nacional: 4\nBanco de semilleros: 334"]
[null,null,"Facultad de Ciencias de la Salud",null,null,null,120,null,null,null,"Vl Encuentro de semilleros de investigación: 11\nParticipación redcolsi regional: 5\nParticipación redcolsi nacional: 0\nBanco de semilleros: 104"]
[null,null,"Facultad de Ciencias Sociales, Humanidades y Ciencias Políticas",null,null,null,44,null,null,null,"Vl Encuentro de semilleros de investigación: 4\nParticipación redcolsi regional: 2\nParticipación redcolsi nacional: 0\nBanco de semilleros: 38"]
[]
[]
[]
[]
[]
[]
[]
[]
[]
[]
[]
[]
[]
[null,null,null,null,null,null,"Bienestar Universitario"]
[null,null,null,null,null,null,"Admisiones y Registro"]
[null,null,null,null,null,null,"Graduados"]
[null,null,null,null,null,null,"Dialogando con el Mundo"]
[null,null,null,null,null,null,"Talento Humano"]
[null,null,null,null,null,null,"Jurídica",null,null,"Por Unidad Regional"]
[null,null,null,null,null,null,"Financiera",null,null,"Por Facultad"]
[null,null,null,null,null,null,"Sistemas y Tecnología",null,null,"Por Programa Académico"]
[null,null,null,null,null,null,"Bienes y Servicios",null,null,"Por área"]
[null,null,null,null,null,null,"Documental",null,null,"Por Laboratorio"]
[null,null,null,null,null,null,"Apoyo Académico",null,null,"Otros"]
[null,null,null,null,null,null,"Control Interno",null,null,"No Aplica"]
[null,null,null,null,null,null,"Control Disciplinario"]
[null,null,null,null,null,null,"Servicio de Atención al Ciudadano"]

{"sheet":"ACTUALIZACIONES","index":5,"n_rows":29,"n_cols":5,"rows_kept":29,"cut":false,"hidden":false,"merged":[[28,1,28,4],[1,1,4,1],[1,2,1,3],[2,2,2,3],[3,2,4,3],[6,1,6,4],[25,1,25,4]]}
[]
[null,null,"MACROPROCESO ESTRATÉGICO",null,"CÓDIGO: ESGr027"]
[null,null,"PROCESO GESTIÓN SISTEMAS INTEGRADOS - CALIDAD",null,"VERSIÓN: 8"]
[null,null,"MATRIZ DE MEDICIÓN Y SEGUIMIENTO A LOS PROCESOS DE GESTIÓN",null,"VIGENCIA: 2023-07-28"]
[null,null,null,null,"PÁGINA: 5 de 5"]
[]
[null,"CONTROL DE ACTUALIZACIONES"]
[null,"FECHA","DESCRIPCIÓN DE LA ACTUALIZACIÓN","RESPONSABLE","CARGO"]
[null,"2022-06-30","Se realizó el ajuste en la estructura del indicador MCT-7 Productos de CTeI generados por los grupos de Investigación, para que la frecuencia de medición se realice de manera semestral","Olga Marina García Norato","Directora de Investigación Universitaria"]
[null,"2023-03-28","MCT-2 \"Investigadores de la Universidad reconocidos ante MinCiencias\", se aumenta la meta a 70%, teniendo en cuenta el comportamiento del indicador en la vigencia de 2022.\nMCT-3 \"Grupos de investigación avalados institucionalmente y registrados ante MinCiencias\", se aumenta la meta a 39 el número de grupos de investigación, teniendo en cuenta el comportamiento del indicador en la vigencia 2022.\nMCT-7 \"Productos de CTeI generados por los grupos de Investigación\", de acuerdo al comportamiento del indicador en 2022 se aumenta la meta a 90% y la frecuencia de resultado Anual.\nMCT-8 \"Participación de los semilleros de investigación en Actividades de CTeI\"se sugiere que para el cumplimiento del indicador y se presente una activa participación de los Semilleros se defina un perfil del Semillerista y la apertura de una convocatoria con el fin que su vinculación sea reconocido en el programa académico en el cual se encuentre el estudiante. De tenerse en cuenta lo anterior se tendría que hacer ajustes a los documentos que soportan las actividades.  ","Olga Marina García Norato","Directora de Investigación Universitaria"]
[null,"2023-08-01","Se incorpora la planificación de actividades para cada objetivo específico.","Olga Marina García Norato","Directora de Investigación Universitaria"]
[null,"2024-02-20","MCT-2  cambia el nombre del indicador para dejar más amplio el alcance del mismo, debido a que desde 2021 MinCiencias no ha realizado nueva convocatoria. Queda: Investigadores de la Universidad reconocidos ante MinCiencias y/o Investigadores activos en grupos de investigación de la Universidad de Cundinamarca. Así mismo se modifica la fórmula: Número ponderado de investigadores de la Universidad sujeto a convocatoria de MinCiencias y/o Investigadores activos en grupos de investigación. En origen de datos, se agrega al GrupLAC.  \nNOTA: Es importante precisar que debido a las demoras en la contratación, estás mediciones se verían afectadas.\nMCT-3 Sube la meta a 40, teniendo en cuenta el buen comportamiento del indicador en la anterior vigencia.\nMCT-7 Sube la meta del indicador a 95%, tendiendo en cuenta el buen comportamiento del indicador en la anterior vigencia, al igual que en la nota del indicador MCT-2, no se eleva más la meta teniendo en cuenta una posible afectación en la medición por las demoras en la contratación. En el nivel de segregación se cambia a FACULTAD, antes estaba en Programa Académico.\nMCT-8 Sube la meta a 85%, teniendo en cuenta los resultados de la vigencia anterior. Para el nivel de segregación se cambia a FACULTAD, antes estaba en Programa Académico.\nNOTA: Es importante precisar que debido a las demoras en la contratación, estás mediciones se verían afectadas.","Olga Marina García Norato","Directora de Investigación Universitaria"]
[]
[]
[]
[]
[]
[]
[]
[]
[]
[]
[]
[]
[]
[null,"Diagonal 18 No. 20-29 Fusagasugá – Cundinamarca\nTeléfono (601)  8281483 Línea Gratuita 018000180414\nwww.ucundinamarca.edu.co   E-mail:  info@ucundinamarca.edu.co\nNIT: 890.680.062-2                                                                             "]
[]
[]
[null,"Documento controlado por el Sistema de Gestión de la Calidad\nAsegúrese que corresponde a la última versión consultando el Portal Institucional"]

{"sheet":"ITEM","index":6,"n_rows":4,"n_cols":3,"rows_kept":4,"cut":false,"hidden":true,"merged":[]}
["MENSUAL",null,"NÚMERO"]
["TRIMESTRAL",null,"PORCENTAJE"]
["SEMESTRAL"]
["ANUAL"]